bitfinex/quotes_ETHUSD_20220308
["timestamp","ask_amount","ask_price","bid_price","bid_amount"]
[1646745457639,0.09980092,2561.3,2561.2,1.518]
[1646745458037,0.09980092,2561.3,2561.2,2.73390964]
[1646745458840,0.09980092,2561.3,2561.2,1.518]
[1646745459647,0.03330072,2561.3,2561.2,1.518]
[1646745459844,1.00022417,2561.3,2561.2,1.518]
[1646745460290,0.03330072,2561.3,2561.2,1.518]
[1646745464644,0.06641089,2561.3,2561.2,1.518]
[1646745466445,0.06641089,2561.3,2561.2,1.05]
[1646745467791,3.0,2561.2,2561.1,0.67040337]
[1646745467994,1.36705,2561.0,2560.1,0.468]
[1646745468190,3.8902,2560.9,2560.1,0.468]
[1646745468390,0.3902,2560.9,2560.1,0.468]
[1646745468591,0.9515408,2560.3,2560.1,0.468]
[1646745469193,0.9515408,2560.3,2560.1,0.768]
[1646745469493,0.156377,2560.4,2560.1,0.768]
[1646745469695,3.32103,2560.8,2560.1,0.768]
[1646745469696,0.00494083,2560.3,2560.1,0.768]
[1646745469897,0.98186083,2560.3,2559.7,0.00096]
[1646745470096,0.98186083,2560.3,2559.6,1.5960427]
[1646745470295,1.3902,2560.2,2559.6,1.5960427]
[1646745470496,1.3902,2560.2,2559.5,0.468]
[1646745470697,1.3902,2560.2,2559.4,0.9770952]
[1646745470698,1.09447673,2559.6,2559.4,0.9770952]
[1646745470897,1.09447673,2559.6,2559.3,0.6873417]
[1646745470898,1.09447673,2559.6,2559.3,0.2193417]
[1646745471096,1.09447673,2559.6,2558.9,0.00096]
[1646745471097,3.8902,2559.5,2558.9,0.00096]
[1646745471296,3.8902,2559.5,2558.8,5.09648783]
[1646745471297,1.36774,2559.4,2558.8,5.09648783]
[1646745471544,1.36774,2559.4,2558.8,3.5]
[1646745471741,1.36774,2559.4,2558.6,0.00096]
[1646745471742,2.82544,2559.4,2558.6,0.00096]
[1646745471941,0.97758,2559.0,2558.5,1.59661378]
[1646745472142,0.97758,2559.0,2558.7,0.00477994]
[1646745472345,1.95512,2559.0,2558.8,1.59661378]
[1646745472546,1.95512,2559.0,2558.9,0.39374055]
[1646745473150,0.3902,2558.7,2558.2,0.468]
[1646745473346,0.97763,2558.6,2558.4,0.01912086]
[1646745473949,0.9787799,2558.5,2558.4,0.01912086]
[1646745474147,0.97761,2558.5,2558.0,2.4230822]
[1646745474349,0.97761,2558.5,2558.1,1.59687285]
[1646745474548,0.97763,2558.6,2558.1,1.59687285]
[1646745474549,0.97763,2558.6,2558.4,0.00463425]
[1646745474748,1.95512,2558.9,2558.4,0.00463425]
[1646745474749,0.97736,2558.9,2558.4,0.00463425]
[1646745474948,0.97736,2558.9,2558.5,2.06472455]
[1646745474949,0.87736,2558.9,2558.5,2.06472455]
[1646745475199,0.87736,2558.9,2558.5,0.468]
[1646745475387,2.89492325,2559.1,2558.5,0.768]
[1646745475587,2.89492325,2559.1,2558.5,0.7726341]
[1646745476087,1.95466,2559.2,2558.6,1.59658082]
[1646745476288,0.97732,2559.2,2558.7,0.468]
[1646745476488,0.97732,2559.2,2558.8,1.59658082]
[1646745476688,0.97732,2559.2,2558.9,0.468]
[1646745476887,0.97732,2559.2,2558.9,0.768]
[1646745477488,1.32069469,2559.3,2559.2,0.72567146]
[1646745478092,1.16426669,2559.3,2559.2,0.72567146]
[1646745478692,1.16426669,2559.3,2559.2,1.82567146]
[1646745479340,0.3902,2559.2,2558.7,0.47264424]
[1646745479543,4.66426669,2559.3,2558.7,0.00464424]
[1646745479544,0.97754,2558.9,2558.7,0.00464424]
[1646745480351,1.15355057,2558.8,2558.6,0.02196311]
[1646745480545,1.15355057,2558.8,2558.7,0.00464385]
[1646745480745,0.97754,2558.9,2558.7,0.00464385]
[1646745481243,1.134008,2558.9,2558.7,0.00464385]
[1646745481446,1.134008,2558.9,2558.6,0.02196311]
[1646745481642,1.134008,2558.9,2558.7,0.00437177]
[1646745481843,2.00341193,2558.9,2558.7,0.00437177]
[1646745482043,0.06764724,2559.0,2558.7,0.00437177]
[1646745482702,0.06764724,2559.0,2558.8,0.468]
[1646745482893,0.06764724,2559.0,2558.8,0.768]
[1646745483092,0.06764724,2559.0,2558.8,1.92512159]
[1646745483492,0.03394724,2559.0,2558.9,13.80645081]
[1646745483793,0.03384342,2559.1,2559.0,17.7102]
[1646745483993,0.03384342,2559.1,2559.0,19.77445081]
[1646745484193,0.03384342,2559.1,2559.0,19.38425081]
[1646745484394,0.03384342,2559.1,2559.0,20.77445081]
[1646745484794,0.00437052,2559.4,2559.2,12.2102]
[1646745484994,1.5475,2560.1,2559.2,12.2102]
[1646745484995,0.152092,2559.3,2559.2,12.2102]
[1646745485197,0.3905,2560.1,2559.4,12.2102]
[1646745485401,1.0,2561.3,2559.6,12.2102]
[1646745485597,4.5,2561.3,2560.6,0.91657598]
[1646745485796,9.31814282,2561.4,2560.7,0.468]
[1646745485797,2.27164282,2561.4,2560.7,0.468]
[1646745485995,1.02544282,2561.4,2560.7,0.468]
[1646745486196,1.02544282,2561.4,2560.8,0.9765015]
[1646745486642,0.00465231,2561.1,2560.8,1.4445015]
[1646745486842,0.00465231,2561.1,2560.8,0.468]
[1646745487050,0.95000666,2561.0,2560.8,0.468]
[1646745487246,0.00465231,2561.1,2560.8,0.468]
[1646745487446,0.3902,2561.4,2560.8,0.468]
[1646745487647,0.00465231,2561.1,2560.8,0.468]
[1646745487849,0.00465231,2561.1,2560.4,0.468]
[1646745487850,1.36705,2561.0,2560.4,0.468]
[1646745488248,1.66705,2561.0,2560.4,0.468]
[1646745488449,1.36705,2561.0,2560.4,0.468]
[1646745488648,1.66705,2561.0,2560.4,0.768]
[1646745488852,0.00464002,2560.8,2560.4,0.768]
[1646745489749,2.11901845,2561.0,2560.4,0.768]
[1646745490050,0.00464011,2560.7,2560.4,0.768]
[1646745490294,0.00464011,2560.7,2560.4,0.468]
[1646745491093,2.34404,2560.9,2560.4,0.468]
[1646745491295,0.00464016,2560.7,2560.4,0.468]
[1646745492295,0.00464016,2560.7,2559.6,0.468]
[1646745492296,2.3444,2560.6,2559.6,0.468]
[1646745492493,2.3444,2560.6,2559.5,0.00096]
[1646745492494,5.3444,2560.6,2559.5,0.00096]
[1646745492692,5.3444,2560.6,2559.4,0.468]
[1646745493193,1.13952491,2559.9,2559.4,0.468]
[1646745493592,1.52972491,2559.9,2559.4,0.468]
[1646745493794,1.52972491,2559.9,2559.4,0.3]
[1646745494042,1.52972491,2559.9,2559.3,0.3]
[1646745494241,1.13952491,2559.9,2559.3,0.3]
[1646745494441,0.39484154,2560.1,2559.4,0.9771263]
[1646745494641,0.97716,2560.2,2559.4,0.9771263]
[1646745495042,0.00464193,2559.7,2559.4,0.9771263]
[1646745495842,1.0006962,2560.1,2559.4,0.9771263]
[1646745496244,0.00464194,2559.7,2559.4,0.9771263]
[1646745497143,1.0006962,2560.1,2559.4,0.9771263]
[1646745497343,3.01433511,2560.7,2559.5,0.3]
[1646745497344,0.00464194,2559.7,2559.5,0.3]
[1646745497544,1.25256398,2560.6,2560.0,0.00632503]
[1646745497790,1.25256398,2560.6,2560.1,0.468]
[1646745497991,0.08316398,2560.6,2560.1,0.8582]
[1646745498188,0.08316398,2560.6,2560.1,0.468]
[1646745498389,0.08316398,2560.6,2560.2,1.21059703]
[1646745498593,0.08316398,2560.6,2560.3,0.468]
[1646745498788,0.08316398,2560.6,2560.3,1.7446718]
[1646745498993,0.07252032,2560.6,2560.3,1.7446718]
[1646745499194,0.07252032,2560.6,2560.3,0.768]
[1646745499392,0.97684,2561.0,2560.3,0.768]
[1646745499594,1.13206835,2561.1,2560.3,0.768]
[1646745499795,0.00449028,2560.6,2560.3,0.768]
[1646745500593,0.156349,2561.0,2560.3,0.768]
[1646745500793,1.13206835,2561.1,2560.3,0.768]
[1646745500993,0.00449028,2560.6,2560.3,0.768]
[1646745501836,0.3902,2561.0,2560.3,0.768]
[1646745502037,0.00449028,2560.6,2560.3,0.768]
[1646745502440,0.00449028,2560.6,2560.0,0.00632503]
[1646745503038,0.3902,2560.7,2560.0,0.00632503]
[1646745503238,1.97686,2560.8,2560.0,0.00632503]
[1646745503439,0.00466428,2560.4,2560.1,0.9768148]
[1646745503638,0.00466428,2560.4,2560.2,0.468]
[1646745504240,0.156352,2560.5,2560.2,0.468]
[1646745504441,0.156352,2560.5,2560.3,1.1817951]
[1646745504640,0.156352,2560.5,2560.3,13.0017951]
[1646745504641,0.00466428,2560.4,2560.3,13.0017951]
[1646745504841,0.08225414,2561.0,2560.5,11.82]
[1646745505042,0.08225414,2561.0,2560.6,12.288]
[1646745505295,0.08225414,2561.0,2560.7,12.288]
[1646745505497,0.08225414,2561.0,2560.8,0.468]
[1646745505696,0.08225414,2561.0,2560.8,1.40907968]
[1646745506998,0.0868931,2561.0,2560.8,1.40907968]
[1646745507199,0.0868931,2561.0,2560.8,0.468]
[1646745507397,0.0868931,2561.0,2560.9,12.2102]
[1646745507598,0.0868931,2561.0,2560.9,13.6782]
[1646745507799,0.0868931,2561.0,2560.9,1.468]
[1646745507999,0.08225414,2561.0,2560.9,13.288]
[1646745508201,0.08225414,2561.0,2560.9,12.288]
[1646745508400,0.08225414,2561.0,2560.9,13.288]
[1646745508599,0.08225414,2561.0,2560.9,13.6782]
[1646745510242,0.08225414,2561.0,2560.9,1.8582]
[1646745510443,0.08225414,2561.0,2560.9,13.6782]
[1646745511342,0.08225414,2561.0,2560.9,13.67549389]
[1646745511744,0.08225414,2561.0,2560.9,14.88047469]
[1646745511942,0.08225414,2561.0,2560.9,15.27067469]
[1646745512141,0.23855214,2561.0,2560.9,15.27067469]
[1646745512342,0.08225414,2561.0,2560.9,15.27067469]
[1646745514306,0.11913917,2561.0,2560.9,13.67549389]
[1646745514504,0.11913917,2561.0,2560.9,15.27058739]
[1646745514705,0.11913917,2561.0,2560.9,3.0603882]
[1646745514903,0.11913917,2561.0,2560.9,2.0603882]
[1646745515106,0.11913917,2561.0,2560.9,0.46529389]
[1646745515903,0.27545017,2561.0,2560.9,0.46529389]
[1646745516744,0.11913917,2561.0,2560.9,0.46529389]
[1646745517858,3.5460141,2561.1,2561.0,0.79737984]
[1646745518050,0.01882808,2561.5,2561.2,0.632]
[1646745518249,0.01882808,2561.5,2561.4,0.632]
[1646745518450,0.01882808,2561.5,2561.4,1.1]
[1646745518850,0.3906,2561.8,2561.4,1.1]
[1646745519050,0.3906,2561.8,2561.5,0.632]
[1646745519351,1.3671,2561.8,2561.5,1.1]
[1646745519556,0.9765,2561.8,2561.5,1.1]
[1646745520388,0.13819996,2562.0,2561.5,1.1]
[1646745520687,0.13819996,2562.0,2561.5,2.29348166]
[1646745520887,0.13819996,2562.0,2561.6,0.632]
[1646745521088,0.13819996,2562.0,2561.6,1.1]
[1646745522095,0.97642,2562.2,2561.6,1.1]
[1646745522291,1.5386,2562.3,2561.6,1.1]
[1646745522492,1.5386,2562.3,2561.6,2.07752297]
[1646745522694,0.00493663,2561.9,2561.6,2.07752297]
[1646745523295,0.00493663,2561.9,2561.8,0.632]
[1646745523494,1.0,2562.5,2561.8,12.92]
[1646745523694,0.0198129,2562.6,2561.9,12.452]
[1646745523938,0.01974379,2562.3,2562.1,0.632]
[1646745524142,0.01974379,2562.3,2562.2,1.1]
[1646745524346,0.01974379,2562.3,2562.2,1.4]
[1646745524748,0.0198129,2562.6,2562.4,0.632]
[1646745524945,0.0198129,2562.6,2562.5,1.1]
[1646745528902,2.5,2562.5,2561.7,0.01819236]
[1646745529108,2.8902,2562.5,2561.7,0.01819236]
[1646745529309,3.8902,2562.5,2561.7,0.01819236]
[1646745529510,0.88449483,2562.2,2561.7,0.01819236]
[1646745529712,3.8902,2562.5,2561.3,1.69096136]
[1646745529912,0.00493971,2562.2,2561.4,1.59464886]
[1646745530310,0.00493971,2562.2,2561.4,3.54717226]
[1646745530510,0.00493971,2562.2,2561.5,0.468]
[1646745530712,1.97627,2562.5,2561.5,0.468]
[1646745530909,1.95529131,2562.5,2561.5,0.468]
[1646745531109,1.95529131,2562.5,2561.5,0.768]
[1646745531110,0.00465911,2561.9,2561.5,0.768]
[1646745531744,0.00465911,2561.9,2561.5,1.74424]
[1646745531945,0.11194992,2562.6,2561.6,1.59452296]
[1646745532244,0.00465922,2561.8,2561.7,0.468]
[1646745532743,0.00465922,2561.8,2561.7,3.95272872]
[1646745533146,0.11194992,2562.6,2561.7,2.4202561]
[1646745533345,0.00465916,2561.9,2561.3,0.468]
[1646745533846,0.00465916,2561.9,2561.3,0.768]
[1646745534049,0.00465916,2561.9,2561.8,0.01816626]
[1646745534448,0.97643,2562.1,2561.8,0.01816626]
[1646745534650,0.99618804,2562.1,2561.8,0.01816626]
[1646745535490,1.15247704,2562.1,2561.8,0.01816626]
[1646745535792,1.20339418,2562.0,2561.8,0.01816626]
[1646745536991,1.20818036,2562.0,2561.8,0.01816626]
[1646745538096,1.20339418,2562.0,2561.8,0.01816626]
[1646745538297,1.20818036,2562.0,2561.8,0.01816626]
[1646745538697,1.0207213,2562.2,2561.8,0.01816626]
[1646745539347,0.05642611,2561.9,2561.8,0.01816626]
[1646745542348,0.05642611,2561.9,2561.8,12.30616626]
[1646745542547,0.00216193,2562.1,2562.0,0.12278666]
[1646745542795,0.0198129,2562.6,2562.0,0.59078666]
[1646745542995,0.0198129,2562.6,2562.2,0.98063493]
[1646745543293,0.0198129,2562.6,2562.3,0.468]
[1646745543294,0.01894465,2562.4,2562.3,0.468]
[1646745544094,0.0198129,2562.6,2562.3,0.468]
[1646745544294,1.06599171,2563.1,2562.4,3.0]
[1646745544497,1.06599171,2563.1,2562.4,3.468]
[1646745544899,1.06599171,2563.1,2562.4,0.468]
[1646745545094,2.04204171,2563.1,2562.4,0.468]
[1646745545300,1.65184171,2563.1,2562.4,0.468]
[1646745546296,2.62794171,2563.1,2562.4,0.468]
[1646745547145,0.97613,2562.8,2562.4,0.468]
[1646745547543,1.87785594,2562.8,2562.4,0.468]
[1646745547847,1.87785594,2562.8,2562.5,0.00493966]
[1646745547848,0.3902,2562.7,2562.5,0.00493966]
[1646745548043,3.90172594,2562.8,2562.5,0.00493966]
[1646745548443,1.0,2562.6,2562.5,0.00493966]
[1646745548843,1.0,2562.6,2562.0,0.12278666]
[1646745549049,1.36652,2562.5,2562.4,0.00493971]
[1646745549249,0.97632,2562.5,2562.4,0.00493971]
[1646745549447,1.97632,2562.5,2562.4,0.00493971]
[1646745549651,1.0,2562.5,2562.4,0.00493971]
[1646745549852,0.03735426,2563.0,2562.4,0.00493971]
[1646745550049,1.39868572,2563.0,2562.0,0.12278666]
[1646745550295,2.39868572,2563.0,2562.0,0.12278666]
[1646745550506,2.40362418,2563.0,2562.3,0.00493982]
[1646745551097,1.36634,2562.9,2562.3,0.00493982]
[1646745551294,1.36634,2562.9,2562.1,1.15924416]
[1646745551494,3.96084572,2563.0,2562.0,0.59078666]
[1646745551495,1.36638,2562.7,2562.0,0.59078666]
[1646745551694,0.97618,2562.7,2562.5,0.0049396]
[1646745552296,1.97618,2562.7,2562.5,0.0049396]
[1646745552494,0.97628,2562.5,2562.0,0.12278666]
[1646745552695,0.97628,2562.5,2562.0,0.68478666]
[1646745552895,1.95255,2562.5,2562.0,0.68478666]
[1646745554146,1.95255,2562.5,2562.1,0.00477331]
[1646745554947,1.95255,2562.5,2562.0,0.68478666]
[1646745555148,1.95255,2562.5,2562.2,0.00477326]
[1646745555550,2.34275,2562.5,2562.2,0.00477326]
[1646745555755,1.95255,2562.5,2562.2,0.00477326]
[1646745556154,1.0,2562.7,2562.0,0.68478666]
[1646745556452,1.1368,2562.8,2562.2,0.00463031]
[1646745557251,1.1368,2562.8,2562.0,0.98478666]
[1646745557452,1.1368,2562.8,2562.1,1.5944304]
[1646745557705,0.45504343,2562.9,2562.4,0.00463017]
[1646745558595,0.45504343,2562.9,2562.2,0.562]
[1646745558795,0.3902,2562.9,2562.5,0.00248909]
[1646745559000,1.9522,2563.0,2562.5,0.00248909]
[1646745559199,0.546449,2563.1,2562.5,0.00248909]
[1646745559599,0.546449,2563.1,2562.4,1.72851852]
[1646745560201,0.00463593,2563.0,2562.7,0.00463658]
[1646745560804,0.00463593,2563.0,2562.4,2.02851852]
[1646745561008,0.3902,2563.1,2562.4,2.02851852]
[1646745561203,0.00463598,2563.0,2562.7,0.0046366]
[1646745561847,0.00463598,2563.0,2562.7,0.5666366]
[1646745562044,0.00463598,2563.0,2562.8,1.13994963]
[1646745562246,1.36612,2563.4,2562.9,0.562]
[1646745562247,0.3902,2563.4,2562.9,0.562]
[1646745563044,0.3902,2563.5,2562.9,0.562]
[1646745563245,1.36349996,2563.6,2562.9,0.562]
[1646745564350,0.06490452,2563.0,2562.9,0.562]
[1646745565593,0.06490452,2563.0,2562.9,2.15599641]
[1646745566202,0.06490452,2563.0,2562.9,14.36619641]
[1646745566398,3.238e-05,2563.1,2563.0,12.2102]
[1646745566599,3.238e-05,2563.1,2563.0,19.8012]
[1646745566800,0.15621238,2563.1,2563.0,21.29676751]
[1646745567000,0.3904,2564.5,2563.2,12.2102]
[1646745567201,0.3904,2564.5,2564.0,1.18957457]
[1646745567400,0.3904,2564.5,2564.1,0.562]
[1646745567603,0.3904,2564.5,2564.2,0.562]
[1646745567803,2.7662,2564.8,2564.3,0.562]
[1646745568000,0.3902,2565.0,2564.3,0.862]
[1646745568202,1.36551,2565.0,2564.3,0.862]
[1646745568402,2.36546,2564.9,2564.3,0.862]
[1646745569252,2.95066,2564.9,2564.3,0.862]
[1646745569452,3.34086,2564.9,2564.3,0.862]
[1646745569652,0.9775114,2564.7,2564.3,0.862]
[1646745569853,0.97541,2564.6,2564.3,0.862]
[1646745570952,0.98034128,2564.6,2564.3,0.862]
[1646745571152,0.98034128,2564.6,2564.3,0.562]
[1646745571555,0.98034128,2564.6,2564.0,0.562]
[1646745571556,1.37054128,2564.6,2564.0,0.562]
[1646745571753,1.37054128,2564.6,2563.9,0.562]
[1646745571754,1.36561,2564.6,2563.9,0.562]
[1646745571953,1.37054128,2564.6,2563.9,0.862]
[1646745572356,0.98034128,2564.6,2563.9,0.862]
[1646745572557,0.00493128,2564.6,2563.9,1.8373959]
[1646745572998,2.95077,2564.9,2563.9,0.862]
[1646745573199,0.0049315,2564.4,2563.9,0.862]
[1646745573398,0.0049315,2564.4,2564.0,1.07580524]
[1646745573697,0.0049315,2564.4,2564.1,0.562]
[1646745573900,0.0049315,2564.4,2564.1,0.862]
[1646745574100,0.97529,2564.9,2564.1,0.862]
[1646745574302,0.3902,2565.0,2564.1,1.8372718]
[1646745574500,0.0049315,2564.4,2564.1,1.8372718]
[1646745575300,0.04742138,2564.5,2564.1,13.6572718]
[1646745575704,0.04742138,2564.5,2564.1,14.6572718]
[1646745575705,0.0049315,2564.4,2564.1,14.6572718]
[1646745576100,0.0049315,2564.4,2564.2,3.5]
[1646745576300,0.0049315,2564.4,2564.1,14.6572718]
[1646745576301,0.0049315,2564.4,2564.3,0.562]
[1646745576545,0.04742138,2564.5,2564.3,16.182]
[1646745576742,0.00493144,2564.4,2564.3,16.4987551]
[1646745577744,0.04742138,2564.5,2564.4,12.2102]
[1646745577944,0.00022138,2564.5,2564.4,17.2722]
[1646745578144,5.277e-05,2564.5,2564.4,17.2722]
[1646745579247,0.02373406,2564.6,2564.5,12.2102]
[1646745579447,0.02373406,2564.6,2564.5,16.2722]
[1646745579650,0.13819996,2565.6,2564.7,12.7949848]
[1646745579952,3.20206844,2566.4,2565.1,12.2102]
[1646745580218,2.9164,2566.4,2565.4,7.029]
[1646745580407,1.1451,2566.7,2565.7,11.82]
[1646745580607,2.722,2567.1,2565.9,11.82]
[1646745580806,1.16448707,2567.0,2566.0,1.68073847]
[1646745581208,1.50468707,2567.0,2566.2,1.2743298]
[1646745581510,1.50468707,2567.0,2566.2,0.3]
[1646745581710,0.00213137,2566.6,2565.9,0.562]
[1646745582107,0.00213137,2566.6,2565.9,0.862]
[1646745582309,0.00213137,2566.6,2566.0,12.7946154]
[1646745582508,2.722,2567.1,2566.1,0.562]
[1646745582709,2.722,2567.1,2566.1,0.862]
[1646745583111,3.722,2567.1,2566.1,0.862]
[1646745583310,3.722,2567.1,2566.5,0.92470714]
[1646745583311,0.3902,2567.0,2566.5,0.92470714]
[1646745583513,1.1751,2567.2,2566.5,1.9488073]
[1646745583711,0.03,2567.2,2566.5,1.9488073]
[1646745583948,0.03,2567.2,2566.5,2.8108073]
[1646745584149,5.07108602,2567.7,2566.6,5.5]
[1646745584353,5.07108602,2567.7,2566.7,0.562]
[1646745584354,5.241e-05,2566.9,2566.7,0.562]
[1646745584550,5.241e-05,2566.9,2566.8,0.9742087]
[1646745584751,5.241e-05,2566.9,2566.8,1.8362087]
[1646745585049,5.241e-05,2566.9,2566.8,3.00377952]
[1646745585253,5.241e-05,2566.9,2566.8,18.5464087]
[1646745585852,5.241e-05,2566.9,2566.8,14.6562087]
[1646745586251,5.241e-05,2566.9,2566.8,2.8362087]
[1646745586452,5.241e-05,2566.9,2566.8,1.8362087]
[1646745586653,5.241e-05,2566.9,2566.8,2.8362087]
[1646745586855,5.241e-05,2566.9,2566.8,1.8362087]
[1646745587055,5.241e-05,2566.9,2566.8,2.8362087]
[1646745587253,5.241e-05,2566.9,2566.8,1.8362087]
[1646745587452,5.241e-05,2566.9,2566.8,2.8362087]
[1646745587704,0.00486151,2567.0,2566.9,5.50074759]
[1646745587895,0.00486151,2567.0,2566.9,6.06274759]
[1646745588095,0.00486151,2567.0,2566.9,7.5074252]
[1646745588295,0.00486151,2567.0,2566.9,8.5074252]
[1646745588696,0.02242114,2567.1,2566.9,8.5074252]
[1646745588899,0.02728255,2567.1,2566.9,8.5074252]
[1646745589100,0.00486141,2567.1,2566.9,8.5074252]
[1646745589299,0.00486141,2567.1,2566.9,3.0074252]
[1646745589503,0.00958829,2567.1,2566.9,0.86274759]
[1646745589701,0.00472688,2567.1,2566.9,1.86274759]
[1646745589899,0.00472688,2567.1,2566.9,0.86274759]
[1646745590102,0.00958823,2567.1,2566.9,0.86274759]
[1646745590703,0.00958823,2567.1,2566.9,0.00074759]
[1646745591101,0.00472688,2567.1,2566.9,0.00074759]
[1646745591555,1.01809097,2567.0,2566.9,0.00074759]
[1646745591757,1.01809097,2567.0,2565.6,3.8974143]
[1646745591758,0.3902,2566.8,2565.6,3.8974143]
[1646745591954,0.3902,2566.8,2564.8,2.46135161]
[1646745591955,0.3902,2566.3,2564.9,0.562]
[1646745592158,0.3902,2566.3,2565.2,3.65582145]
[1646745592354,2.34032,2566.0,2565.2,3.65582145]
[1646745592756,1.36526,2566.0,2565.2,3.65582145]
[1646745592954,1.36526,2566.0,2565.2,0.15582145]
[1646745593254,1.95483688,2566.3,2565.2,0.15582145]
[1646745593255,0.39492688,2566.3,2565.2,0.15582145]
[1646745593477,0.3902,2566.1,2565.2,3.64255285]
[1646745593654,0.97491,2566.2,2565.2,3.94255285]
[1646745593655,1.97491,2566.2,2565.2,3.94255285]
[1646745593856,2.96716535,2566.2,2565.2,4.94255285]
[1646745594056,0.3902,2566.1,2565.2,4.94255285]
[1646745594456,1.36989688,2566.1,2565.2,4.94255285]
[1646745594662,1.3652,2565.9,2565.2,2.96760835]
[1646745594857,0.00468817,2565.8,2565.2,0.15582145]
[1646745595497,0.00941505,2565.8,2565.2,0.15582145]
[1646745595897,0.00472688,2565.8,2565.2,0.15582145]
[1646745596099,0.00468832,2565.6,2565.3,0.95700111]
[1646745596399,0.0094152,2565.6,2565.3,0.95700111]
[1646745596599,0.0094152,2565.6,2565.3,1.25700111]
[1646745596998,0.00472688,2565.6,2565.3,1.25700111]
[1646745597202,0.00941525,2565.6,2565.3,1.25700111]
[1646745598200,0.00472688,2565.6,2565.3,1.25700111]
[1646745598399,0.00933988,2565.6,2565.3,1.25700111]
[1646745599450,0.00933988,2565.6,2565.4,0.562]
[1646745599451,0.00472688,2565.6,2565.4,0.562]
[1646745599651,0.00933988,2565.6,2565.4,0.562]
[1646745599855,0.00933988,2565.6,2565.4,0.57529692]
[1646745600651,0.00472688,2565.6,2565.4,0.57529692]
[1646745600851,0.00933983,2565.6,2565.4,0.57529692]
[1646745601052,0.00945376,2565.6,2565.5,3.5]
[1646745601255,5.376e-05,2565.6,2565.5,16.32]
[1646745601561,5.376e-05,2565.6,2565.5,17.37756751]
[1646745602252,5.376e-05,2565.6,2565.5,13.87756751]
[1646745602720,5.376e-05,2565.6,2565.5,2.05756751]
[1646745603105,5.376e-05,2565.6,2565.5,12.87756751]
[1646745603306,5.376e-05,2565.6,2565.5,17.37756751]
[1646745603607,5.376e-05,2565.6,2565.5,24.6012]
[1646745604211,5.376e-05,2565.6,2565.5,24.79676751]
[1646745604411,0.9745,2566.9,2565.6,0.00074624]
[1646745604613,0.00843927,2566.1,2566.0,20.05039065]
[1646745604813,0.00843927,2566.1,2566.0,22.1595]
[1646745604814,3.927e-05,2566.1,2566.0,22.1595]
[1646745605414,7.52e-06,2566.9,2566.0,26.94694607]
[1646745605613,7.52e-06,2566.9,2566.8,19.2392]
[1646745605913,0.01800214,2567.7,2566.8,20.8012]
[1646745606115,0.01800214,2567.7,2567.2,11.82]
[1646745606313,2.14e-06,2567.7,2567.2,13.2102]
[1646745606548,2.14e-06,2567.7,2567.4,12.2102]
[1646745606748,2.14e-06,2567.7,2567.6,19.2392]
[1646745606948,2.14e-06,2567.7,2567.6,19.8012]
[1646745607147,2.14e-06,2567.7,2567.6,8.891]
[1646745607750,0.97392,2567.9,2567.7,0.00079786]
[1646745607953,0.97392,2567.9,2567.8,0.562]
[1646745608150,0.97392,2567.9,2567.8,0.862]
[1646745608553,0.0212517,2568.2,2567.8,1.89075612]
[1646745608554,0.97383,2568.1,2567.8,1.89075612]
[1646745608749,0.97383,2568.1,2567.8,0.862]
[1646745608949,0.0212517,2568.2,2567.8,2.8096557]
[1646745609155,0.01282616,2568.2,2567.8,2.8096557]
[1646745609354,3.606e-05,2568.2,2567.8,19.1296557]
[1646745609558,3.606e-05,2568.2,2567.8,18.1296557]
[1646745609755,3.606e-05,2568.2,2567.8,26.1586557]
[1646745610211,3.606e-05,2568.2,2568.1,12.93120466]
[1646745610396,3.606e-05,2568.2,2568.1,13.79320466]
[1646745610597,3.606e-05,2568.2,2568.1,14.79320466]
[1646745610998,3.606e-05,2568.2,2568.1,13.682]
[1646745611197,3.606e-05,2568.2,2568.1,1.862]
[1646745611403,3.606e-05,2568.2,2568.1,17.182]
[1646745611597,3.606e-05,2568.2,2568.1,16.182]
[1646745611798,3.606e-05,2568.2,2568.1,13.682]
[1646745611999,3.606e-05,2568.2,2568.1,1.862]
[1646745612199,3.606e-05,2568.2,2568.1,13.682]
[1646745612401,3.606e-05,2568.2,2568.1,1.2522]
[1646745613000,3.606e-05,2568.2,2568.1,4.7522]
[1646745613200,3.606e-05,2568.2,2568.1,17.54575]
[1646745613401,3.606e-05,2568.2,2568.1,18.54575]
[1646745613602,3.606e-05,2568.2,2568.1,15.04575]
[1646745613800,3.606e-05,2568.2,2568.1,1.862]
[1646745614251,3.606e-05,2568.2,2568.1,0.87495306]
[1646745614450,3.606e-05,2568.2,2568.1,0.88848549]
[1646745614650,0.97371,2568.4,2568.1,0.88848549]
[1646745614851,0.97371,2568.4,2568.2,1.9473946]
[1646745615050,0.97371,2568.4,2568.3,0.562]
[1646745615253,1.27371,2568.4,2568.1,0.02648549]
[1646745615454,2.92168,2568.3,2568.1,0.02648549]
[1646745615850,2.92168,2568.3,2568.1,0.58848549]
[1646745616453,2.92168,2568.3,2568.1,0.88848549]
[1646745616454,2.87168,2568.3,2568.1,0.88848549]
[1646745616651,2.87168,2568.3,2568.1,0.58848549]
[1646745616851,2.87168,2568.3,2568.2,0.3]
[1646745617050,0.97388,2568.3,2568.2,0.3]
[1646745617252,0.97388,2568.3,2568.1,0.88848549]
[1646745617453,0.97388,2568.3,2568.1,0.58848549]
[1646745617705,0.97388,2568.3,2568.1,0.02648549]
[1646745618898,0.97878526,2568.3,2568.1,0.02648549]
[1646745619302,0.97878526,2568.3,2568.1,0.01295306]
[1646745619703,0.97878526,2568.3,2568.2,0.562]
[1646745619704,0.00490526,2568.3,2568.2,0.562]
[1646745619905,0.00869676,2568.5,2568.2,0.562]
[1646745620107,0.00869676,2568.5,2568.2,0.862]
[1646745621308,0.00869676,2568.5,2568.3,0.9737295]
[1646745621544,0.00869676,2568.5,2568.4,0.862]
[1646745622445,0.00869676,2568.5,2568.4,0.562]
[1646745622745,0.00869676,2568.5,2568.4,0.862]
[1646745624350,0.00869676,2568.5,2568.4,0.562]
[1646745624552,0.00869676,2568.5,2568.4,0.57333973]
[1646745626193,0.00869676,2568.5,2568.4,0.87333973]
[1646745627001,0.00869676,2568.5,2568.4,1.78353534]